fUST/lending_fUST_20240322
["ID","MTS","AMOUNT","RATE_DAILY","PERIOD"]
[320036436,1711102152274,-154.84515485,0.00022394,2]
[320036437,1711102152296,-182.342913,0.00022395,2]
[320036438,1711102152316,-1514.21243641,0.00022986,2]
[320036439,1711102152335,-2382.28687557,0.00023087,2]
[320036440,1711102152355,-153.0,0.00023091,2]
[320036441,1711102152375,-153.0,0.00023365,2]
[320036442,1711102152395,-153.0,0.00023639,2]
[320036443,1711102152415,-162.18715408,0.00023793,2]
[320036444,1711102152435,-157.47508156,0.00023793,2]
[320036445,1711102160152,-262.74124479,0.00023793,2]
[320036446,1711102160174,-805.82496402,0.00023793,2]
[320036447,1711102160195,-611.24805464,0.00023794,2]
[320036448,1711102160218,-24900.0,0.00023795,2]
[320036449,1711102160240,-2000.0,0.0002478,2]
[320036450,1711102160268,-2000.0,0.00024904,2]
[320036451,1711102160289,-2000.0,0.00025027,2]
[320036452,1711102160312,-2000.0,0.0002515,2]
[320036453,1711102160332,-187.32257474,0.00025172,2]
[320036454,1711102160354,-466.2835046,0.00025272,2]
[320036455,1711102160378,-2034.607004,0.00025273,2]
[320036456,1711102160399,-250.0,0.00025331,2]
[320036457,1711102160419,-481.11676275,0.00025426,2]
[320036458,1711102160440,-500.0,0.00025519,2]
[320036459,1711102160462,-500.0,0.00025519,2]
[320036460,1711102160482,-500.0,0.00025519,2]
[320036461,1711102160503,-500.0,0.00025519,2]
[320036462,1711102160526,-500.0,0.00025519,2]
[320036463,1711102160547,-387.77348353,0.00025519,2]
[320036464,1711102160568,-500.0,0.00025519,2]
[320036465,1711102160589,-330.64611704,0.00025519,2]
[320036466,1711102160609,-432.8261891,0.00025521,4]
[320036467,1711102160632,-594.11028484,0.00025581,2]
[320036468,1711102160655,-154.84515485,0.00025681,2]
[320036469,1711102160677,-500.0,0.00025681,2]
[320036470,1711102160698,-493.54224124,0.00025681,2]
[320036471,1711102160718,-264.85183178,0.00025681,2]
[320036472,1711102160739,-500.0,0.00025681,2]
[320036473,1711102160760,-500.0,0.00025681,2]
[320036474,1711102160781,-254.41233861,0.00025681,2]
[320036475,1711102160804,-500.0,0.00025681,2]
[320036476,1711102160825,-500.0,0.00025681,2]
[320036477,1711102160847,-500.0,0.00025681,2]
[320036478,1711102160868,-500.0,0.00025681,2]
[320036479,1711102160889,-500.0,0.00025681,2]
[320036480,1711102160914,-500.0,0.00025681,2]
[320036481,1711102160935,-230.37696508,0.00025681,2]
[320036482,1711102160956,-304.33358802,0.00025681,2]
[320036483,1711102160979,-27181.94051755,0.00025682,2]
[320036484,1711102161000,-421.78993696,0.00025683,2]
[320036485,1711102161022,-158.449071,0.00025753,2]
[320036486,1711102161042,-594.11028484,0.00026662,2]
[320036487,1711102161066,-955.88137658,0.00026847,2]
[320036488,1711102166034,211.79271276,0.0002583,2]
[320036489,1711102166367,237.65122113,0.0002583,2]
[320036490,1711102169014,203.54194375,0.0002583,2]
[320036491,1711102171161,1072.47541167,0.0002583,2]
[320036492,1711102171182,102.86381541,0.0002583,2]
[320036493,1711102174713,155.37188232,0.00025832,2]
[320036494,1711102207438,909.68138291,0.00021755,2]
[320036495,1711102208607,634.48406915,0.00022843,2]
[320036546,1711102232917,-1082.05842394,0.00025833,2]
[320036548,1711102232927,-750.7248651,0.00025833,2]
[320036550,1711102232940,-689.11360976,0.00027297,2]
[320036552,1711102232950,-198.03676162,0.00027297,2]
[320036553,1711102232961,-155.44116798,0.00027368,2]
[320036555,1711102232972,-6998.97966208,0.00027392,2]
[320036557,1711102232983,-265.21175813,0.00027394,7]
[320036558,1711102232993,-303.92728219,0.00027394,2]
[320036560,1711102233003,-245.95231577,0.00027394,2]
[320036561,1711102233014,-155.9196241,0.00027394,2]
[320036562,1711102233024,-240.35470573,0.00027394,2]
[320036563,1711102233035,-222.69768656,0.00027394,2]
[320036564,1711102233045,-500.0,0.00027397,2]
[320036565,1711102233251,-500.0,0.00027397,2]
[320036566,1711102233262,-151.0,0.00027397,2]
[320036567,1711102233272,-226.226482,0.00027397,2]
[320036568,1711102233282,-310.813185,0.00027397,2]
[320036569,1711102233293,-310.813185,0.00027397,2]
[320036570,1711102233302,-5504.0,0.00027397,2]
[320036571,1711102233311,-3030.21,0.00027397,2]
[320036572,1711102233321,-1369.4,0.00027397,2]
[320036573,1711102233331,-155.502776,0.00027397,2]
[320036574,1711102233341,-991.81,0.00027397,2]
[320036575,1711102233351,-8055.67,0.00027397,2]
[320036576,1711102233361,-1825.31,0.00027397,2]
[320036577,1711102233370,-8484.06,0.00027397,2]
[320036578,1711102233386,-588.80356667,0.00027397,2]
[320036579,1711102233396,-588.80356667,0.00027397,2]
[320036580,1711102233405,-501.60077712,0.00027397,2]
[320036581,1711102233414,-588.80356667,0.00027397,2]
[320036582,1711102233423,-588.80356667,0.00027397,2]
[320036583,1711102233433,-588.80356667,0.00027397,2]
[320036584,1711102233443,-588.80356667,0.00027397,2]
[320036585,1711102233452,-588.80356667,0.00027397,2]
[320036586,1711102233461,-588.80356667,0.00027397,2]
[320036587,1711102233470,-588.80356667,0.00027397,2]
[320036588,1711102233480,-588.80356667,0.00027397,2]
[320036589,1711102233491,-588.80356667,0.00027397,2]
[320036590,1711102233500,-588.80356667,0.00027397,2]
[320036591,1711102233510,-588.80356667,0.00027397,2]
[320036592,1711102233520,-588.80356667,0.00027397,2]
[320036593,1711102233529,-588.80356667,0.00027397,2]
[320036594,1711102233538,-588.80356667,0.00027397,2]
[320036595,1711102233547,-588.80356667,0.00027397,2]
[320036596,1711102233557,-588.80356667,0.00027397,2]
[320036597,1711102233566,-588.80356667,0.00027397,2]
[320036598,1711102233575,-588.80356667,0.00027397,2]
[320036599,1711102233584,-588.80356667,0.00027397,2]
[320036600,1711102233593,-588.80356667,0.00027397,2]
[320036601,1711102233603,-588.80356667,0.00027397,2]
[320036602,1711102233612,-588.80356667,0.00027397,2]
[320036603,1711102233620,-588.80356667,0.00027397,2]
[320036604,1711102233634,-588.80356667,0.00027397,2]
[320036605,1711102233643,-588.80356667,0.00027397,2]
[320036606,1711102233653,-588.80356667,0.00027397,2]
[320036607,1711102233664,-588.80356667,0.00027397,2]
[320036609,1711102233676,-588.80356667,0.00027397,2]
[320036611,1711102233686,-588.80356667,0.00027397,2]
[320036613,1711102233695,-588.80356667,0.00027397,2]
[320036615,1711102233704,-588.80356667,0.00027397,2]
[320036616,1711102233714,-588.80356667,0.00027397,2]
[320036617,1711102233723,-588.80356667,0.00027397,2]
[320036618,1711102233733,-588.80356667,0.00027397,2]
[320036619,1711102233743,-588.80356667,0.00027397,2]
[320036620,1711102233753,-588.80356667,0.00027397,2]
[320036621,1711102233763,-588.80356667,0.00027397,2]
[320036622,1711102233773,-588.80356667,0.00027397,2]
[320036623,1711102233782,-588.80356667,0.00027397,2]
[320036624,1711102233792,-588.80356667,0.00027397,2]
[320036625,1711102233801,-588.80356667,0.00027397,2]
[320036626,1711102233811,-588.80356667,0.00027397,2]
[320036627,1711102233820,-588.80356667,0.00027397,2]
[320036628,1711102233830,-588.80356667,0.00027397,2]
[320036629,1711102233839,-588.80356667,0.00027397,2]
[320036630,1711102233849,-588.80356667,0.00027397,2]
[320036631,1711102233859,-588.80356667,0.00027397,2]
[320036632,1711102233868,-588.80356667,0.00027397,2]
[320036633,1711102233880,-588.80356667,0.00027397,2]
[320036634,1711102233889,-588.80356667,0.00027397,2]
[320036635,1711102233899,-588.80356667,0.00027397,2]
[320036636,1711102233909,-588.80356667,0.00027397,2]
[320036637,1711102233919,-588.80356667,0.00027397,2]
[320036638,1711102233928,-588.80356667,0.00027397,2]
[320036639,1711102233938,-588.80356667,0.00027397,2]
[320036640,1711102233947,-588.80356667,0.00027397,2]
[320036641,1711102233957,-588.80356667,0.00027397,2]
[320036642,1711102233966,-588.80356667,0.00027397,2]
[320036643,1711102233975,-588.80356667,0.00027397,2]
[320036644,1711102233984,-588.80356667,0.00027397,2]
[320036645,1711102233994,-588.80356667,0.00027397,2]
[320036646,1711102234003,-210.33233452,0.00027397,2]
[320036675,1711102238635,-500.0,0.00027396,2]
[320036676,1711102238644,-500.0,0.00027396,2]
[320036677,1711102238653,-323.31957369,0.00027396,2]
[320036678,1711102238663,-191.30007641,0.00027396,2]
[320036679,1711102238673,-169.11308952,0.00027396,2]
[320036680,1711102238682,-258.96067967,0.00027396,2]
[320036681,1711102238693,-500.0,0.00027397,2]
[320036682,1711102238703,-2139.98,0.00027397,2]
[320036683,1711102238713,-151.0,0.00027397,2]
[320036684,1711102238722,-151.0,0.00027397,2]
[320036685,1711102238731,-151.0,0.00027397,2]
[320036686,1711102238739,-151.0,0.00027397,2]
[320036687,1711102238748,-1549.81,0.00027397,2]
[320036688,1711102238758,-151.0,0.00027397,2]
[320036689,1711102238767,-151.0,0.00027397,2]
[320036690,1711102238778,-215.849862,0.00027397,2]
[320036691,1711102238787,-881.37,0.00027397,2]
[320036692,1711102238797,-1001.09230946,0.00027397,2]
[320036693,1711102238809,-3828.13983231,0.00027397,2]
[320036694,1711102238839,-559.1077386,0.00027397,2]
[320036703,1711102242986,-366.62315762,0.00027396,2]
[320036705,1711102242996,-3585.03587934,0.00027397,2]
[320036806,1711102247995,-616.97666661,0.00027395,2]
[320036807,1711102248005,-469.98746995,0.00027395,2]
[320036808,1711102248015,-783.57894867,0.00027395,2]
[320036809,1711102248025,-1545.43512469,0.00027395,2]
[320036810,1711102248035,-685.20411728,0.00027395,2]
[320036811,1711102248046,-155.4104141,0.00027396,2]
[320036812,1711102248055,-391.43621159,0.00027396,2]
[320036813,1711102248065,-7936.47424029,0.00027397,2]
[320036814,1711102248074,-500.0,0.00027397,2]
[320036815,1711102248084,-500.0,0.00027397,2]
[320036816,1711102248093,-500.0,0.00027397,2]
[320036817,1711102248104,-500.0,0.00027397,2]
[320036818,1711102248114,-500.0,0.00027397,2]
[320036819,1711102248123,-500.0,0.00027397,2]
[320036820,1711102248133,-500.0,0.00027397,2]
[320036821,1711102248145,-508.08900967,0.00027397,2]
[320036822,1711102248154,-500.0,0.00027397,2]
[320036823,1711102248165,-500.0,0.00027397,2]
[320036824,1711102248174,-500.0,0.00027397,2]
[320036825,1711102248183,-500.0,0.00027397,2]
[320036826,1711102248193,-500.0,0.00027397,2]
[320036827,1711102248201,-500.0,0.00027397,2]
[320036828,1711102248210,-500.0,0.00027397,2]
[320036829,1711102248220,-500.0,0.00027397,2]
[320036830,1711102248229,-500.0,0.00027397,2]
[320036831,1711102248239,-500.0,0.00027397,2]
[320036832,1711102248250,-500.0,0.00027397,2]
[320036833,1711102248259,-500.0,0.00027397,2]
[320036834,1711102248270,-500.0,0.00027397,2]
[320036835,1711102248279,-500.0,0.00027397,2]
[320036836,1711102248288,-500.0,0.00027397,2]
[320036837,1711102248297,-500.0,0.00027397,2]
[320036838,1711102248307,-417.85966914,0.00027397,2]
[320036839,1711102248317,-500.0,0.00027397,2]
[320036840,1711102248326,-500.0,0.00027397,2]
[320036841,1711102248335,-500.0,0.00027397,2]
[320036842,1711102248345,-500.0,0.00027397,2]
[320036843,1711102248356,-500.0,0.00027397,2]
[320036844,1711102248365,-500.0,0.00027397,2]
[320036845,1711102248374,-500.0,0.00027397,2]
[320036846,1711102248384,-500.0,0.00027397,2]
[320036847,1711102248395,-500.0,0.00027397,2]
[320036848,1711102248404,-500.0,0.00027397,2]
[320036849,1711102248413,-500.0,0.00027397,2]
[320036850,1711102248422,-500.0,0.00027397,2]
[320036851,1711102248432,-500.0,0.00027397,2]
[320036852,1711102248441,-500.0,0.00027397,2]
[320036853,1711102248450,-10186.74,0.00027397,2]
[320036854,1711102248459,-167.32445,0.00027397,2]
[320036855,1711102248469,-689.11360975,0.00027409,2]
[320036856,1711102248478,-689.11360975,0.0002752,2]
[320036857,1711102248487,-198.03676161,0.0002752,2]
[320036858,1711102248497,-689.11360975,0.00027632,2]
[320036859,1711102248507,-689.11360975,0.00027743,2]
[320036860,1711102248517,-198.03676161,0.00027743,2]
[320036861,1711102248526,-411.29264271,0.000278,2]
[320036862,1711102248536,-28374.5838061,0.00027843,3]
[320036867,1711102248912,-2469.3174751,0.00027843,3]
[320036868,1711102248922,-500.0,0.00027843,2]
[320036869,1711102248931,-500.41620243,0.00027843,2]
[320036870,1711102248940,-198.5846267,0.00027843,2]
[320036871,1711102248950,-500.0,0.00027843,2]
[320036872,1711102248959,-500.0,0.00027843,2]
[320036873,1711102248968,-500.0,0.00027843,2]
[320036874,1711102248977,-500.0,0.00027843,2]
[320036875,1711102248986,-500.0,0.00027843,2]
[320036876,1711102248995,-500.0,0.00027843,2]
[320036877,1711102249004,-500.0,0.00027843,2]
[320036878,1711102249014,-501.60048217,0.00027843,2]
[320036879,1711102249023,-500.0,0.00027843,2]
[320036880,1711102249033,-500.0,0.00027843,2]
[320036881,1711102249042,-500.0,0.00027843,2]
[320036882,1711102249051,-620.67,0.00027843,2]
[320036883,1711102249061,-500.0,0.00027843,2]
[320036884,1711102249069,-500.0,0.00027843,2]
[320036885,1711102249078,-502.11866755,0.00027843,2]
[320036886,1711102249087,-506.22017972,0.00027843,2]
[320036887,1711102249097,-501.98572281,0.00027843,2]
[320036888,1711102249106,-1479.38,0.00027843,2]
[320036889,1711102249115,-500.0,0.00027843,2]
[320036890,1711102249124,-500.0,0.00027843,2]
[320036891,1711102249133,-500.0,0.00027843,2]
[320036892,1711102249145,-500.0,0.00027843,2]
[320036893,1711102249154,-501.35994269,0.00027843,2]
[320036894,1711102249163,-500.0,0.00027843,2]
[320036895,1711102249173,-500.0,0.00027843,2]
[320036896,1711102249182,-500.0,0.00027843,2]
[320036897,1711102249191,-566.07,0.00027843,2]
[320036898,1711102249200,-500.0,0.00027843,2]
[320036899,1711102249210,-500.43041631,0.00027843,2]
[320036900,1711102249219,-500.0,0.00027843,2]
[320036901,1711102249228,-500.0,0.00027843,2]
[320036902,1711102249238,-500.0,0.00027843,2]
[320036903,1711102249248,-500.0,0.00027843,2]
[320036904,1711102249257,-996.32,0.00027843,2]
[320036905,1711102249266,-500.0,0.00027843,2]
[320036906,1711102249278,-500.0,0.00027843,2]
[320036907,1711102249287,-500.55150117,0.00027843,2]
[320036908,1711102249296,-500.43703076,0.00027843,2]
[320036909,1711102249305,-500.0,0.00027843,2]
[320036910,1711102249316,-500.0,0.00027843,2]
[320036911,1711102249327,-503.32582543,0.00027843,2]
[320036912,1711102249337,-500.0,0.00027843,2]
[320036913,1711102249346,-649.71,0.00027843,2]
[320036914,1711102249355,-500.0,0.00027843,2]
[320036915,1711102249364,-500.0,0.00027843,2]
[320036916,1711102249479,-502.05618781,0.00027843,2]
[320036917,1711102249489,-500.0,0.00027843,2]
[320036918,1711102249499,-500.0,0.00027843,2]
[320036919,1711102249508,-500.0,0.00027843,2]
[320036920,1711102249517,-585.79592819,0.00027843,2]
[320036921,1711102249526,-500.0,0.00027843,2]
[320036922,1711102249536,-575.93,0.00027843,2]
[320036923,1711102249545,-502.20794264,0.00027843,2]
[320036924,1711102249555,-500.0,0.00027843,2]
[320036925,1711102249568,-207.736035,0.00027843,2]
[320036926,1711102249577,-482.42428167,0.00027843,2]
[320036927,1711102249588,-501.31892173,0.00027843,2]
[320036928,1711102249599,-759.0,0.00027843,2]
[320036929,1711102249608,-500.0,0.00027843,2]
[320036930,1711102249617,-3811.17,0.00027843,2]
[320036931,1711102249626,-3241.78,0.00027843,2]
[320036932,1711102249637,-501.07933928,0.00027843,2]
[320036933,1711102249647,-500.89734377,0.00027843,2]
[320036934,1711102249657,-500.0,0.00027843,2]
[320036935,1711102249666,-310.813185,0.00027843,2]
[320036936,1711102249677,-310.813185,0.00027843,2]
[320036937,1711102249691,-310.813185,0.00027843,2]
[320036938,1711102249701,-310.813185,0.00027843,2]
[320036939,1711102249712,-500.32475583,0.00027843,2]
[320036940,1711102249722,-310.813185,0.00027843,2]
[320036941,1711102249732,-310.813185,0.00027843,2]
[320036942,1711102249741,-310.813185,0.00027843,2]
[320036943,1711102249750,-310.813185,0.00027843,2]
[320036944,1711102249761,-500.47422,0.00027843,2]
[320036945,1711102249771,-2246.69,0.00027843,2]
[320036946,1711102249780,-500.0,0.00027843,2]
[320036947,1711102249789,-500.0,0.00027843,2]
[320036948,1711102249798,-500.0,0.00027843,2]
[320036949,1711102249807,-513.97,0.00027843,2]
[320036950,1711102249817,-500.46943817,0.00027843,2]
[320036951,1711102249826,-501.14038636,0.00027843,2]
[320036952,1711102249835,-500.46017919,0.00027843,2]
[320036953,1711102249845,-500.0,0.00027843,2]
[320036954,1711102249854,-500.0,0.00027843,2]
[320036955,1711102249864,-500.0,0.00027843,2]
[320036956,1711102249873,-646.4651221,0.00027843,2]
[320036957,1711102249882,-500.61722055,0.00027843,2]
[320036958,1711102249891,-502.2038925,0.00027843,2]
[320036959,1711102249902,-188.65047234,0.00027843,2]
[320036960,1711102249911,-2928.14,0.00027843,2]
[320036961,1711102249919,-500.0,0.00027843,2]
[320036962,1711102249929,-644.05,0.00027843,2]
[320036963,1711102249938,-501.00892429,0.00027843,2]
[320036964,1711102249948,-655.23,0.00027843,2]
[320036965,1711102249957,-501.26463931,0.00027843,2]
[320036966,1711102249965,-500.86087306,0.00027843,2]
[320036967,1711102249974,-500.0,0.00027843,2]
[320036968,1711102249985,-500.0,0.00027843,2]
[320036969,1711102249994,-500.47010326,0.00027843,2]
[320036970,1711102250004,-722.12,0.00027843,2]
[320036971,1711102250013,-542.0,0.00027843,2]
[320036972,1711102250022,-206.05203283,0.00027843,2]
[320036973,1711102250032,-367.86177703,0.00027843,2]
[320036974,1711102250042,-500.79459512,0.00027843,2]
[320036975,1711102250051,-500.0,0.00027843,2]
[320036976,1711102250061,-561.4,0.00027843,2]
[320036977,1711102250070,-500.0,0.00027843,2]
[320036978,1711102250080,-500.56462165,0.00027843,2]
[320036979,1711102250090,-500.0,0.00027843,2]
[320036980,1711102250098,-110.31721308,0.00027843,2]
[320036981,1711102250113,-465.36278692,0.00027843,2]
[320036982,1711102250122,-151.0,0.00027843,2]
[320036983,1711102250132,-501.97819687,0.00027843,2]
[320036984,1711102250145,-236.93103692,0.00027843,2]
[320036985,1711102250156,-500.0,0.00027843,2]
[320036986,1711102250167,-342.2854786,0.00027843,2]
[320036987,1711102250176,-500.0,0.00027843,2]
[320036988,1711102250187,-346.71216608,0.00027843,2]
[320036989,1711102250197,-500.8218641,0.00027843,2]
[320036990,1711102250207,-30522.19,0.00027843,2]
[320036991,1711102250217,-500.0,0.00027843,2]
[320036992,1711102250226,-2445.97,0.00027843,2]
[320036993,1711102250236,-500.0,0.00027843,2]
[320036994,1711102250246,-500.36592096,0.00027843,2]
[320036995,1711102250255,-500.0,0.00027843,2]
[320036996,1711102250264,-500.53599087,0.00027843,2]
[320036997,1711102250274,-500.0,0.00027843,2]
[320036998,1711102250283,-7181.86,0.00027843,2]
[320036999,1711102250293,-395.9591847,0.00027843,2]
[320037000,1711102250303,-170.76975097,0.00027843,2]
[320037001,1711102250312,-500.0,0.00027843,2]
[320037002,1711102250321,-585.28,0.00027843,2]
[320037003,1711102250331,-784.06,0.00027843,2]
[320037004,1711102250341,-500.59174508,0.00027843,2]
[320037005,1711102250350,-500.38263884,0.00027843,2]
[320037006,1711102250358,-686.59,0.00027843,2]
[320037007,1711102250368,-500.0,0.00027843,2]
[320037008,1711102250377,-500.0,0.00027843,2]
[320037009,1711102250386,-501.025861,0.00027843,2]
[320037010,1711102250398,-500.29817707,0.00027843,2]
[320037011,1711102250407,-345.5875745,0.00027843,2]
[320037012,1711102250417,-500.5688312,0.00027843,2]
[320037013,1711102250426,-501.48639624,0.00027843,2]
[320037014,1711102250435,-501.92,0.00027843,2]
[320037015,1711102250444,-500.0,0.00027843,2]
[320037016,1711102250454,-151.0,0.00027843,2]
[320037017,1711102250463,-151.0,0.00027843,2]
[320037018,1711102250472,-196.998539,0.00027843,2]
[320037019,1711102250484,-500.0,0.00027843,2]
[320037020,1711102250493,-548.65,0.00027843,2]
[320037021,1711102250502,-508.97875966,0.00027843,2]
[320037022,1711102250512,-500.29067219,0.00027843,2]
[320037023,1711102250521,-3204.62967823,0.00027843,2]
[320037024,1711102258082,217.09563973,0.00025832,2]
[320037025,1711102261507,375.56079294,0.00025832,2]
[320037026,1711102263174,195.64602515,0.00027,2]
[320037027,1711102317050,167.206906,0.00026123,2]
[320037028,1711102335262,946.449287,0.00026396,2]
[320037030,1711103227131,-156.30521551,0.00022535,2]
[320037031,1711103227152,-160.75398886,0.00022536,2]
[320037032,1711103227172,-2747.23165129,0.00022537,2]
[320037033,1711103227193,-154.82968734,0.00022537,2]
[320037034,1711103227220,-305.37831306,0.00022538,2]
[320037035,1711103227241,-187.66216206,0.00022538,2]
[320037036,1711103227262,-637.92688129,0.00022563,2]
[320037037,1711103227282,-620.89634406,0.00023691,2]
[320037038,1711103227302,-2000.0,0.00024904,2]
[320037039,1711103227324,-473.224643,0.00025124,2]
[320037040,1711103227347,-2000.0,0.0002515,2]
[320037041,1711103227369,-150.0,0.00025743,2]
[320037042,1711103227390,-6070.3039473,0.00025949,2]
[320037043,1711103227412,-753.29276324,0.00026396,2]
[320037044,1711103227432,-341.857,0.00026847,2]
[320037045,1711103227452,-200.99321263,0.00027276,2]
[320037046,1711103227478,-837.71555244,0.00027286,2]
[320037047,1711103227499,-1146.7824555,0.00027286,2]
[320037072,1711103361292,-160.75398886,0.00026397,2]
[320037073,1711103361315,-236.41644001,0.00026398,2]
[320037116,1711103432425,-0.19588099,0.00026398,2]
[320037117,1711103432436,-2747.23165129,0.00027285,2]
[320037118,1711103432445,-4525.63988864,0.00027286,2]
[320037197,1711103437791,-2091.81782431,0.00027286,2]
[320037198,1711103437801,-286.50523909,0.00027297,2]
[320037199,1711103437810,-154.92253873,0.00027395,2]
[320037200,1711103437819,-202.69875964,0.00027395,2]
[320037201,1711103437828,-1954.57424788,0.00027395,2]
[320037202,1711103437837,-261.7610483,0.00027395,2]
[320037203,1711103437846,-4606.89515983,0.00027395,2]
[320037204,1711103437855,-497.32069966,0.00027395,2]
[320037205,1711103437865,-155.13779927,0.00027395,2]
[320037206,1711103437874,-207.06690328,0.00027395,2]
[320037207,1711103437883,-476.51140381,0.00027395,2]
[320037208,1711103437893,-561.97535589,0.00027395,2]
[320037209,1711103437902,-155.60062006,0.00027395,2]
[320037210,1711103437911,-375.7902377,0.00027395,2]
[320037211,1711103437920,-170.16116473,0.00027395,2]
[320037212,1711103437929,-157.02304869,0.00027395,2]
[320037213,1711103437938,-99.22484844,0.00027395,2]
[320037214,1711103437951,-171.92736027,0.00027395,2]
[320037215,1711103437960,-1483.47508692,0.00027396,2]
[320037216,1711103437969,-2602.41354496,0.00027396,2]
[320037218,1711103437979,-1571.32607788,0.00027396,2]
[320037220,1711103437989,-500.0,0.00027396,2]
[320037221,1711103437999,-500.0,0.00027396,2]
[320037223,1711103438009,-296.21124188,0.00027396,2]
[320037225,1711103438019,-500.0,0.00027396,2]
[320037227,1711103438029,-206.80118293,0.00027396,2]
[320037228,1711103438041,-500.0,0.00027396,2]
[320037230,1711103438050,-500.0,0.00027396,2]
[320037239,1711103438194,-500.0,0.00027396,2]
[320037241,1711103438205,-500.0,0.00027396,2]
[320037242,1711103438215,-500.0,0.00027397,2]
[320037244,1711103438225,-354.96374428,0.00027397,2]
[320037245,1711103438234,-500.0,0.00027397,2]
[320037246,1711103438244,-504.15000414,0.00027397,2]
[320037247,1711103438254,-649.20040764,0.00027397,2]
[320037248,1711103438264,-500.0,0.00027397,2]
[320037249,1711103438274,-501.2386946,0.00027397,2]
[320037250,1711103438283,-1481.58,0.00027397,2]
[320037251,1711103438292,-388.62588081,0.00027397,2]
[320037252,1711103438302,-500.0,0.00027397,2]
[320037253,1711103438311,-500.0,0.00027397,2]
[320037254,1711103438321,-500.0,0.00027397,2]
[320037255,1711103438330,-500.0,0.00027397,2]
[320037256,1711103438340,-500.0,0.00027397,2]
[320037257,1711103438350,-396.82148525,0.00027397,2]
[320037258,1711103438362,-103.17851475,0.00027397,2]
[320037259,1711103438378,-500.0,0.00027397,2]
[320037260,1711103438387,-374.0634275,0.00027397,2]
[320037261,1711103438397,-98.25841818,0.00027397,2]
[320037288,1711103441836,-401.74158182,0.00027397,2]
[320037289,1711103441846,-254.29666974,0.00027397,2]
[320037290,1711103441856,-500.0,0.00027397,2]
[320037291,1711103441866,-500.0,0.00027397,2]
[320037292,1711103441880,-552.34377062,0.00027397,2]
[320037293,1711103441890,-500.0,0.00027397,2]
[320037294,1711103441900,-500.0,0.00027397,2]
[320037295,1711103441910,-42.16797782,0.00027397,2]
[320037344,1711103445960,-317.33476395,0.00027397,2]
[320037345,1711103445969,-435.63761526,0.00027397,2]
[320037346,1711103445978,-500.0,0.00027397,2]
[320037347,1711103445988,-500.0,0.00027397,2]
[320037348,1711103445997,-776.57,0.00027397,2]
[320037349,1711103446006,-500.23775745,0.00027397,2]
[320037350,1711103446015,-501.3447409,0.00027397,2]
[320037351,1711103446025,-500.0,0.00027397,2]
[320037352,1711103446035,-500.0,0.00027397,2]
[320037353,1711103446045,-500.83262899,0.00027397,2]
[320037354,1711103446054,-500.0,0.00027397,2]
[320037355,1711103446064,-3930.8,0.00027397,2]
[320037356,1711103446073,-500.0,0.00027397,2]
[320037357,1711103446082,-501.1676717,0.00027397,2]
[320037358,1711103446091,-500.0,0.00027397,2]
[320037359,1711103446100,-1343.61,0.00027397,2]
[320037360,1711103446109,-674.84,0.00027397,2]
[320037361,1711103446118,-581.18,0.00027397,2]
[320037362,1711103446129,-712.06,0.00027397,2]
[320037363,1711103446138,-500.0,0.00027397,2]
[320037364,1711103446148,-500.0,0.00027397,2]
[320037365,1711103446157,-500.0,0.00027397,2]
[320037366,1711103446167,-500.0,0.00027397,2]
[320037367,1711103446176,-648.38,0.00027397,2]
[320037368,1711103446186,-500.0,0.00027397,2]
[320037369,1711103446195,-500.0,0.00027397,2]
[320037370,1711103446204,-500.0,0.00027397,2]
[320037371,1711103446213,-500.0,0.00027397,2]